fUSD/lending_fUSD_20240616
["ID","MTS","AMOUNT","RATE_DAILY","PERIOD"]
[329632436,1718518250478,-500.0,0.00021917,2]
[329632438,1718518250513,-500.0,0.00021917,2]
[329632440,1718518250540,-549.61,0.00021917,2]
[329632441,1718518250558,-500.0,0.00021917,2]
[329632443,1718518250569,-500.0,0.00021917,2]
[329632449,1718518250650,-500.0,0.00021917,2]
[329632451,1718518250680,-500.0,0.00021917,2]
[329632452,1718518250693,-104.55384766,0.00021917,2]
[329632494,1718518252968,-395.44615234,0.00021917,2]
[329632495,1718518252986,-271.71210178,0.00021917,2]
[329632496,1718518253030,-228.28789822,0.00021917,2]
[329632497,1718518253042,-500.0,0.00021917,2]
[329632498,1718518253063,-500.0,0.00021917,2]
[329632499,1718518253084,-500.0,0.00021917,2]
[329632500,1718518253099,-500.0,0.00021917,2]
[329632501,1718518253112,-500.0,0.00021917,2]
[329632502,1718518253134,-420.87207925,0.00021917,2]
[329632503,1718518253153,-79.12792075,0.00021917,2]
[329632504,1718518253165,-500.0,0.00021917,2]
[329632505,1718518253184,-120.8816705,0.00021917,2]
[329632506,1718518253202,-379.1183295,0.00021917,2]
[329632507,1718518253217,-500.0,0.00021917,2]
[329632508,1718518253230,-785.15,0.00021917,2]
[329632509,1718518253245,-500.0,0.00021917,2]
[329632510,1718518253282,-550.96,0.00021917,2]
[329632511,1718518253309,-500.0,0.00021917,2]
[329632512,1718518253327,-500.0,0.00021917,2]
[329632513,1718518253351,-500.0,0.00021917,2]
[329632514,1718518253390,-500.0,0.00021917,2]
[329632515,1718518253415,-500.0,0.00021917,2]
[329632516,1718518253427,-500.0,0.00021917,2]
[329632517,1718518253488,-500.0,0.00021917,2]
[329632518,1718518253500,-513.22,0.00021917,2]
[329632519,1718518253525,-500.0,0.00021917,2]
[329632520,1718518253570,-500.0,0.00021917,2]
[329632521,1718518253593,-502.4975413,0.00021917,2]
[329632522,1718518253610,-500.0,0.00021917,2]
[329632523,1718518253622,-963.63,0.00021917,2]
[329632524,1718518253638,-500.0,0.00021917,2]
[329632525,1718518253654,-160.77990578,0.00021917,2]
[329632526,1718518253674,-500.0,0.00021917,2]
[329632527,1718518253704,-944.29,0.00021917,2]
[329632528,1718518253717,-695.89,0.00021917,2]
[329632529,1718518253728,-500.0,0.00021917,2]
[329632530,1718518253794,-764.69,0.00021917,2]
[329632531,1718518253806,-590.17,0.00021917,2]
[329632532,1718518253837,-580.3,0.00021917,2]
[329632533,1718518253865,-5915.2,0.00021917,2]
[329632534,1718518253900,-500.0,0.00021917,2]
[329632535,1718518253923,-500.0,0.00021917,2]
[329632537,1718518253943,-13013.94822883,0.00021917,2]
[329632538,1718518253973,-1217.89072931,0.00021917,2]
[329632552,1718518254426,-1100.0,0.00021917,2]
[329632554,1718518254443,-1955.81104186,0.00021917,2]
[329632556,1718518254472,-500.0,0.00021917,2]
[329632557,1718518254483,-898.98895814,0.00021917,2]
[329632558,1718518254505,-587.42104186,0.00021917,2]
[329632559,1718518254541,-500.0,0.00021917,2]
[329632560,1718518254557,-648.3445679,0.00021917,2]
[329632561,1718518255158,-256.9154321,0.00021917,2]
[329632562,1718518255212,-500.0,0.00021917,2]
[329632563,1718518255237,-500.0,0.00021917,2]
[329632564,1718518255249,-500.0,0.00021917,2]
[329632565,1718518255280,-456.71927059,0.00021917,2]
[329632566,1718518255542,-43.28072941,0.00021917,2]
[329632567,1718518255557,-453.62588313,0.00021917,2]
[329632568,1718518255567,-500.0,0.00021917,2]
[329632569,1718518255604,-995.71,0.00021917,2]
[329632570,1718518255632,-500.0,0.00021917,2]
[329632571,1718518255684,-731.35112076,0.00021917,2]
[329632572,1718518256140,-53.30887924,0.00021917,2]
[329632573,1718518256196,-1115.60807476,0.00021917,2]
[329632574,1718518257185,-731.92186907,0.00021917,2]
[329632580,1718519282027,-626.43651989,0.00012811,2]
[329632581,1718519282063,-977.947979,0.00012812,2]
[329632582,1718519282099,-8420.61550111,0.00012877,2]
[329632583,1718519311402,2456.7535948,9.658e-05,2]
[329632584,1718519431205,20000.0,9.658e-05,2]
[329632585,1718519431282,20000.0,9.658e-05,2]
[329632586,1718519431328,20000.0,9.658e-05,2]
[329632587,1718519431379,20000.0,9.658e-05,2]
[329632588,1718519431460,27266.61377321,9.658e-05,2]
[329632589,1718519431519,176419.36828481,9.658e-05,2]
[329632608,1718519433572,-328.8373251,0.00012675,2]
[329632609,1718519433602,-460.43123519,0.00012675,2]
[329632610,1718519434021,-8980.97957088,0.00012675,2]
[329632611,1718519434043,-5641.09832108,0.00012675,2]
[329632612,1718519434057,-982.1450938,0.00012774,2]
[329632613,1718519434083,-209.64860058,0.00012775,2]
[329632614,1718519434096,-150.0,0.00012776,2]
[329632615,1718519434109,-150.0,0.00012776,2]
[329632616,1718519434136,-690.84487887,0.00012877,2]
[329632617,1718519434529,-658.25,0.00012877,2]
[329632618,1718519434576,-9815.04572517,0.00012877,2]
[329632619,1718519434589,-19584.75610515,0.00012877,2]
[329632620,1718519434615,-180.84144565,0.00012877,2]
[329632621,1718519434630,-411.02483161,0.00012877,2]
[329632622,1718519434654,-753.15564966,0.000139,2]
[329632623,1718519434674,-937.27,0.000139,2]
[329632624,1718519434708,-955.0,0.00013998,2]
[329632625,1718519434719,-499.99,0.00013998,2]
[329632626,1718519434734,-305.62,0.00013998,2]
[329632627,1718519434747,-210.0,0.00014054,2]
[329632628,1718519434761,-210.0,0.00014054,2]
[329632629,1718519434773,-7019.09,0.00014909,2]
[329632630,1718519434792,-716.5,0.000171,2]
[329632631,1718519434805,-2195.64,0.00018445,2]
[329632632,1718519434837,-171.55,0.00018485,2]
[329632634,1718519434864,-625.98597315,0.00018526,2]
[329632636,1718519434875,-23890.0,0.00018527,2]
[329632637,1718519434896,-250.0,0.00018585,2]
[329632641,1718519434934,-208.0,0.0001874,2]
[329632642,1718519434965,-200.0,0.00018856,2]
[329632644,1718519434984,-200.0,0.00018918,2]
[329632645,1718519434998,-689.76,0.00018918,2]
[329632646,1718519435009,-178.46,0.00019197,2]
[329632647,1718519435026,-208.0,0.000192,2]
[329632648,1718519435044,-716.5,0.00019364,2]
[329632649,1718519435055,-200.0,0.00019389,2]
[329632650,1718519435083,-4107.04970264,0.0001964,2]
[329632651,1718519435100,-208.0,0.0001965,2]
[329632652,1718519435116,-6334.659,0.0001965,2]
[329632654,1718519435145,-167.55,0.00019707,2]
[329632655,1718519435170,-155.43916725,0.00019723,2]
[329632656,1718519435200,-1000.0,0.0001984,2]
[329632657,1718519435211,-1008.04956244,0.00020077,2]
[329632658,1718519435252,-208.0,0.000201,2]
[329632659,1718519435266,-208.0,0.0002056,2]
[329632660,1718519435282,-1304.75816031,0.00020818,2]
[329632661,1718519435306,-208.0,0.0002101,2]
[329632662,1718519435329,-2195.64,0.00021185,2]
[329632663,1718519435353,-208.0,0.0002147,2]
[329632664,1718519435377,-716.5,0.00021628,2]
[329632665,1718519435394,-383.3117566,0.00021653,2]
[329632666,1718519435408,-256.91167104,0.00021695,2]
[329632667,1718519435432,-160.37960923,0.00021698,2]
[329632668,1718519435465,-308.52320539,0.00021716,2]
[329632669,1718519435483,-219.76,0.00021808,2]
[329632670,1718519435505,-282.30869565,0.00021814,2]
[329632671,1718519435524,-282.30869564,0.00021815,2]
[329632672,1718519435549,-282.30869564,0.00021816,2]
[329632673,1718519435568,-111746.0476,0.00021816,2]
[329632674,1718519435578,-282.30869564,0.00021816,2]
[329632675,1718519435594,-168.81120062,0.00021817,2]
[329632676,1718519435618,-166.77271991,0.00021817,2]
[329632677,1718519435666,-165.57576165,0.00021817,2]
[329632678,1718519435704,-7950.93979629,0.00021817,2]
[329632679,1718519435738,-282.30869564,0.00021817,2]
[329632680,1718519435764,-421.25962037,0.00021843,2]
[329632681,1718519435778,-164.41,0.00021853,2]
[329632682,1718519435809,-4614.50555793,0.00021894,2]
[329632683,1718519435835,-2242.0,0.000219,2]
[329632684,1718519435846,-4328.83411182,0.000219,2]
[329632685,1718519435860,-183.07209151,0.000219,2]
[329632686,1718519435872,-537.05043027,0.00021906,2]
[329632687,1718519435884,-150.55,0.00021906,2]
[329632688,1718519435899,-150.55,0.00021906,2]
[329632689,1718519435918,-150.55,0.00021906,2]
[329632690,1718519435943,-150.55,0.00021907,2]
[329632691,1718519435985,-436.22788795,0.00021912,2]
[329632692,1718519435999,-2338.76123193,0.00021912,2]
[329632693,1718519436012,-156.32068361,0.00021913,2]
[329632694,1718519436029,-8428.94573219,0.00021913,2]
[329632695,1718519436043,-155.39701641,0.00021914,2]
[329632696,1718519436064,-4446.54749549,0.00021914,2]
[329632697,1718519436097,-189.97483543,0.00021914,2]
[329632698,1718519436117,-155.0,0.00021914,2]
[329632699,1718519436128,-239.79550489,0.00021914,2]
[329632700,1718519436148,-155.82331019,0.00021914,2]
[329632701,1718519436160,-157.99223805,0.00021914,2]
[329632702,1718519436176,-218.1552576,0.00021914,2]
[329632703,1718519436193,-406.61684361,0.00021914,2]
[329632704,1718519436207,-201.64148981,0.00021914,2]
[329632705,1718519436218,-1000.0,0.00021914,2]
[329632706,1718519436242,-638.95398189,0.00021914,2]
[329632707,1718519436276,-155.0,0.00021914,2]
[329632708,1718519436287,-215.95453193,0.00021914,2]
[329632709,1718519436299,-2417.64410478,0.00021914,2]
[329632710,1718519436313,-524.84526053,0.00021914,2]
[329632711,1718519436337,-3046.30922724,0.00021914,2]
[329632712,1718519436349,-524.4208755,0.00021914,2]
[329632713,1718519436373,-156.06871205,0.00021914,2]
[329632714,1718519436391,-156.55806351,0.00021914,2]
[329632715,1718519436417,-249.36816993,0.00021914,2]
[329632716,1718519436430,-338.29816075,0.00021914,2]
[329632717,1718519436447,-155.82945605,0.00021914,2]
[329632718,1718519436458,-3118.65486946,0.00021914,2]
[329632719,1718519436471,-181.39354604,0.00021914,2]
[329632720,1718519436506,-1406.90313427,0.00021914,2]
[329632721,1718519436517,-157.63764113,0.00021914,2]
[329632722,1718519436529,-156.76769233,0.00021914,2]
[329632723,1718519436542,-155.41724428,0.00021914,2]
[329632724,1718519436553,-156.7012365,0.00021914,2]
[329632725,1718519436573,-2386.00563136,0.00021914,2]
[329632726,1718519436588,-1625.93576349,0.00021914,2]
[329632727,1718519436627,-1088.43010461,0.00021914,2]
[329632728,1718519436641,-35504.94626586,0.00021914,2]
[329632729,1718519436664,-350.33069042,0.00021914,2]
[329632730,1718519436675,-206.33367559,0.00021914,2]
[329632731,1718519436694,-1000.0,0.00021914,2]
[329632732,1718519436710,-244.4948077,0.00021914,2]
[329632733,1718519436728,-2821.19405743,0.00021914,2]
[329632734,1718519436752,-451.25687443,0.00021914,2]
[329632735,1718519436771,-10305.30655614,0.00021915,2]
[329632736,1718519436785,-381.82910939,0.00021915,2]
[329632737,1718519436809,-241.43090812,0.00021915,2]
[329632738,1718519436843,-180.7446027,0.00021916,2]
[329632739,1718519436869,-510464.72741536,0.00021916,2]
[329632740,1718519436911,-159.37510319,0.00021917,2]
[329632741,1718519436938,-216.90923526,0.00021917,2]
[329632742,1718519436953,-8237.98320664,0.00021917,2]
[329632743,1718519436978,-447.56672219,0.00021917,2]
[329632744,1718519436994,-289.50002068,0.00021917,2]
[329632745,1718519437008,-509.26364645,0.00021917,2]
[329632746,1718519437025,-501.39594049,0.00021917,2]
[329632747,1718519437049,-507.86629849,0.00021917,2]
[329632748,1718519437063,-402.3553141,0.00021917,2]
[329632749,1718519437075,-514.46073792,0.00021917,2]
[329632750,1718519437096,-500.0,0.00021917,2]
[329632751,1718519437119,-502.2619914,0.00021917,2]
[329632752,1718519437132,-497.73559253,0.00021917,2]
[329632753,1718519437158,-521.55408793,0.00021917,2]
[329632754,1718519437178,-500.24198297,0.00021917,2]
[329632755,1718519437208,-513.25642018,0.00021917,2]
[329632756,1718519437219,-500.0,0.00021917,2]
[329632757,1718519437230,-500.0,0.00021917,2]
[329632758,1718519437242,-526.50834052,0.00021917,2]
[329632759,1718519437262,-500.0,0.00021917,2]
[329632760,1718519437284,-500.0,0.00021917,2]
[329632761,1718519437299,-500.0,0.00021917,2]
[329632762,1718519437317,-500.0,0.00021917,2]
[329632763,1718519437330,-500.0,0.00021917,2]
[329632764,1718519437344,-500.0,0.00021917,2]
[329632765,1718519437364,-500.0,0.00021917,2]
[329632766,1718519437380,-500.0,0.00021917,2]
[329632767,1718519437407,-500.0,0.00021917,2]
[329632768,1718519437436,-500.0,0.00021917,2]
[329632769,1718519437470,-500.0,0.00021917,2]
[329632770,1718519437484,-500.0,0.00021917,2]
[329632771,1718519437497,-500.0,0.00021917,2]
[329632772,1718519437532,-500.0,0.00021917,2]
[329632773,1718519437564,-500.0,0.00021917,2]
[329632774,1718519437585,-500.0,0.00021917,2]
[329632775,1718519437597,-500.0,0.00021917,2]
[329632776,1718519437608,-500.0,0.00021917,2]
[329632777,1718519437632,-500.0,0.00021917,2]
[329632778,1718519437644,-500.0,0.00021917,2]
[329632779,1718519437661,-500.0,0.00021917,2]
[329632780,1718519437673,-500.0,0.00021917,2]
[329632781,1718519437689,-500.0,0.00021917,2]
[329632782,1718519437703,-500.0,0.00021917,2]
[329632783,1718519437726,-500.0,0.00021917,2]
[329632784,1718519437738,-500.0,0.00021917,2]
[329632785,1718519437753,-501.82997854,0.00021917,2]
[329632786,1718519437792,-500.0,0.00021917,2]
[329632787,1718519437828,-500.0,0.00021917,2]
[329632788,1718519437867,-500.0,0.00021917,2]
[329632789,1718519437902,-500.0,0.00021917,2]
[329632790,1718519437914,-500.0,0.00021917,2]
[329632791,1718519437942,-500.0,0.00021917,2]
[329632792,1718519437960,-500.0,0.00021917,2]
[329632793,1718519437973,-500.0,0.00021917,2]
[329632794,1718519437986,-500.0,0.00021917,2]
[329632795,1718519437997,-500.0,0.00021917,2]
[329632796,1718519438010,-500.0,0.00021917,2]
[329632797,1718519438023,-500.0,0.00021917,2]
[329632798,1718519438033,-410.32311947,0.00021917,2]
[329632799,1718519438050,-500.0,0.00021917,2]
[329632800,1718519438069,-500.0,0.00021917,2]
[329632801,1718519438102,-500.0,0.00021917,2]
[329632802,1718519438154,-500.0,0.00021917,2]
[329632803,1718519438169,-500.0,0.00021917,2]
[329632804,1718519438181,-500.0,0.00021917,2]
[329632805,1718519438193,-500.0,0.00021917,2]
[329632806,1718519438209,-500.0,0.00021917,2]
[329632807,1718519438224,-500.0,0.00021917,2]
[329632808,1718519438243,-500.0,0.00021917,2]
[329632809,1718519438264,-500.0,0.00021917,2]
[329632810,1718519438289,-500.0,0.00021917,2]
[329632811,1718519438304,-495.49584085,0.00021917,2]
[329632812,1718519438337,-500.0,0.00021917,2]
[329632813,1718519438350,-500.0,0.00021917,2]
[329632814,1718519438364,-500.0,0.00021917,2]
[329632815,1718519438386,-500.0,0.00021917,2]
[329632816,1718519438399,-500.0,0.00021917,2]
[329632817,1718519438421,-500.0,0.00021917,2]
[329632818,1718519438434,-500.0,0.00021917,2]
[329632819,1718519438447,-500.0,0.00021917,2]
[329632820,1718519438478,-500.0,0.00021917,2]
[329632821,1718519438491,-502.1751482,0.00021917,2]
[329632822,1718519438517,-500.0,0.00021917,2]
[329632823,1718519438549,-500.0,0.00021917,2]
[329632824,1718519438563,-500.0,0.00021917,2]
[329632825,1718519438594,-500.0,0.00021917,2]
[329632826,1718519438612,-535.40761089,0.00021917,2]
[329632827,1718519438624,-519.58,0.00021917,2]
[329632828,1718519438643,-500.0,0.00021917,2]
[329632829,1718519438657,-500.0,0.00021917,2]
[329632830,1718519438671,-500.0,0.00021917,2]
[329632831,1718519438685,-500.0,0.00021917,2]
[329632832,1718519438704,-500.0,0.00021917,2]
[329632833,1718519438734,-500.0,0.00021917,2]
[329632834,1718519438768,-500.0,0.00021917,2]
[329632835,1718519438801,-500.0,0.00021917,2]
[329632836,1718519438831,-500.0,0.00021917,2]
[329632837,1718519438854,-500.0,0.00021917,2]
[329632838,1718519438873,-500.0,0.00021917,2]
[329632839,1718519438897,-500.0,0.00021917,2]
[329632840,1718519438912,-500.0,0.00021917,2]
[329632841,1718519438956,-500.0,0.00021917,2]
[329632842,1718519438971,-500.0,0.00021917,2]
[329632843,1718519438992,-500.0,0.00021917,2]
[329632844,1718519439006,-500.0,0.00021917,2]
[329632845,1718519439048,-500.0,0.00021917,2]
[329632846,1718519439077,-500.0,0.00021917,2]
[329632847,1718519439104,-500.0,0.00021917,2]
[329632848,1718519439139,-500.0,0.00021917,2]
[329632849,1718519439171,-500.0,0.00021917,2]
[329632850,1718519439208,-500.0,0.00021917,2]
[329632851,1718519439229,-500.0,0.00021917,2]
[329632852,1718519439253,-500.0,0.00021917,2]
[329632853,1718519439276,-500.0,0.00021917,2]
[329632854,1718519439299,-500.0,0.00021917,2]
[329632855,1718519439323,-500.0,0.00021917,2]
[329632856,1718519439341,-215.10899336,0.00021917,2]
[329632857,1718519439382,-500.0,0.00021917,2]
[329632858,1718519439405,-500.0,0.00021917,2]
[329632859,1718519439417,-500.0,0.00021917,2]
[329632860,1718519439430,-500.0,0.00021917,2]
[329632861,1718519439443,-500.0,0.00021917,2]
[329632862,1718519439464,-500.0,0.00021917,2]
[329632863,1718519439501,-500.0,0.00021917,2]
[329632864,1718519439522,-500.0,0.00021917,2]
[329632865,1718519439535,-500.0,0.00021917,2]
[329632866,1718519439555,-500.0,0.00021917,2]
[329632867,1718519439571,-500.0,0.00021917,2]
[329632868,1718519439598,-1278.71846927,0.00021917,2]
[329632869,1718519439648,-721.28153073,0.00021917,2]
[329632870,1718519439680,-500.0,0.00021917,2]
[329632871,1718519439711,-500.0,0.00021917,2]
[329632872,1718519439764,-500.0,0.00021917,2]
[329632873,1718519439812,-200.0,0.00021917,2]
[329632874,1718519439842,-500.0,0.00021917,2]
[329632875,1718519439863,-500.0,0.00021917,2]
[329632876,1718519439890,-521.4,0.00021917,2]
[329632877,1718519439913,-500.0,0.00021917,2]
[329632878,1718519439969,-500.0,0.00021917,2]
[329632879,1718519440016,-500.0,0.00021917,2]
[329632880,1718519440052,-500.0,0.00021917,2]
[329632881,1718519440064,-500.0,0.00021917,2]
[329632882,1718519440081,-500.0,0.00021917,2]
[329632883,1718519440126,-500.0,0.00021917,2]
[329632884,1718519440145,-500.0,0.00021917,2]
[329632885,1718519440190,-843.59,0.00021917,2]
[329632886,1718519440231,-500.0,0.00021917,2]
[329632887,1718519440244,-500.0,0.00021917,2]
[329632888,1718519440273,-516.14399049,0.00021917,2]
[329632889,1718519440291,-500.0,0.00021917,2]
[329632890,1718519440320,-500.0,0.00021917,2]
[329632891,1718519440335,-500.0,0.00021917,2]
[329632892,1718519440348,-881.45,0.00021917,2]
[329632893,1718519440371,-500.0,0.00021917,2]
[329632894,1718519440422,-500.0,0.00021917,2]
[329632895,1718519440449,-500.0,0.00021917,2]
[329632896,1718519440474,-500.0,0.00021917,2]
[329632897,1718519440491,-596.3,0.00021917,2]
[329632898,1718519440503,-500.0,0.00021917,2]
[329632899,1718519440514,-500.0,0.00021917,2]
[329632900,1718519440539,-500.0,0.00021917,2]
[329632901,1718519440566,-500.0,0.00021917,2]
[329632902,1718519440584,-500.0,0.00021917,2]
[329632903,1718519440626,-500.0,0.00021917,2]
[329632904,1718519440652,-500.0,0.00021917,2]
[329632905,1718519440688,-517.49,0.00021917,2]
[329632906,1718519440701,-630.07128822,0.00021917,2]
[329632907,1718519440723,-500.0,0.00021917,2]
[329632908,1718519440738,-500.0,0.00021917,2]
[329632909,1718519440813,-500.0,0.00021917,2]
[329632910,1718519440828,-500.0,0.00021917,2]
[329632911,1718519440866,-500.0,0.00021917,2]
[329632912,1718519440885,-517.12,0.00021917,2]
[329632913,1718519440906,-500.0,0.00021917,2]
[329632914,1718519440919,-500.0,0.00021917,2]
[329632915,1718519440936,-500.0,0.00021917,2]
[329632916,1718519440970,-500.0,0.00021917,2]
[329632917,1718519440997,-500.0,0.00021917,2]
[329632918,1718519441040,-500.0,0.00021917,2]
[329632919,1718519441069,-500.0,0.00021917,2]
[329632920,1718519441109,-500.0,0.00021917,2]
[329632921,1718519441133,-321.77750449,0.00021917,2]
[329632922,1718519441152,-500.0,0.00021917,2]
[329632923,1718519441178,-500.0,0.00021917,2]
[329632924,1718519441205,-500.0,0.00021917,2]
[329632925,1718519441217,-500.0,0.00021917,2]
[329632926,1718519441233,-500.0,0.00021917,2]
[329632927,1718519441252,-500.0,0.00021917,2]
[329632928,1718519441276,-500.0,0.00021917,2]
[329632929,1718519441290,-500.0,0.00021917,2]
[329632930,1718519441302,-500.0,0.00021917,2]
[329632931,1718519441348,-500.0,0.00021917,2]
[329632932,1718519441359,-500.0,0.00021917,2]
[329632933,1718519441388,-558.88,0.00021917,2]
[329632934,1718519441407,-500.0,0.00021917,2]
[329632935,1718519441428,-500.0,0.00021917,2]
[329632936,1718519441668,-500.0,0.00021917,2]
[329632937,1718519441685,-695.39,0.00021917,2]
[329632938,1718519441697,-500.0,0.00021917,2]
[329632939,1718519441723,-500.0,0.00021917,2]
[329632940,1718519441753,-500.0,0.00021917,2]
[329632941,1718519441786,-500.0,0.00021917,2]
[329632942,1718519441800,-500.0,0.00021917,2]
[329632943,1718519441814,-500.0,0.00021917,2]
[329632944,1718519441848,-509.68842426,0.00021917,2]
[329632945,1718519441862,-500.0,0.00021917,2]
[329632946,1718519441876,-500.0,0.00021917,2]
[329632947,1718519441888,-500.0,0.00021917,2]
[329632948,1718519441903,-500.0,0.00021917,2]
[329632949,1718519441915,-500.0,0.00021917,2]
[329632950,1718519441927,-500.0,0.00021917,2]
[329632951,1718519441948,-500.0,0.00021917,2]
[329632952,1718519441978,-518.8,0.00021917,2]
[329632953,1718519442012,-500.0,0.00021917,2]
[329632954,1718519442038,-568.9730111,0.00021917,2]
[329632955,1718519442065,-500.0,0.00021917,2]
[329632956,1718519442092,-500.0,0.00021917,2]
[329632957,1718519442104,-500.0,0.00021917,2]
[329632958,1718519442126,-500.0,0.00021917,2]
[329632959,1718519442156,-500.0,0.00021917,2]
[329632960,1718519442168,-500.0,0.00021917,2]
[329632961,1718519442212,-579.83,0.00021917,2]
[329632962,1718519442236,-500.0,0.00021917,2]
[329632963,1718519442268,-508.3594052,0.00021917,2]
[329632964,1718519442292,-500.0,0.00021917,2]
[329632965,1718519442312,-500.0,0.00021917,2]
[329632966,1718519442377,-500.0,0.00021917,2]
[329632967,1718519442393,-500.0,0.00021917,2]
[329632968,1718519442415,-500.0,0.00021917,2]
[329632969,1718519442428,-665.03,0.00021917,2]
[329632970,1718519442440,-500.0,0.00021917,2]
[329632971,1718519442453,-500.0,0.00021917,2]
[329632972,1718519442485,-500.0,0.00021917,2]
[329632973,1718519442497,-500.0,0.00021917,2]
[329632974,1718519442509,-500.0,0.00021917,2]
[329632975,1718519442520,-500.0,0.00021917,2]
[329632976,1718519442535,-500.0,0.00021917,2]
[329632977,1718519442556,-500.0,0.00021917,2]
[329632978,1718519442585,-500.0,0.00021917,2]
[329632979,1718519442598,-500.0,0.00021917,2]
[329632980,1718519442610,-500.0,0.00021917,2]
[329632981,1718519442637,-500.0,0.00021917,2]
[329632982,1718519442664,-500.0,0.00021917,2]
[329632983,1718519442676,-500.0,0.00021917,2]
[329632984,1718519442696,-552.92701266,0.00021917,2]
[329632985,1718519442716,-500.0,0.00021917,2]
[329632986,1718519442760,-500.0,0.00021917,2]
[329632987,1718519442771,-500.0,0.00021917,2]
[329632988,1718519442784,-500.0,0.00021917,2]
[329632989,1718519442795,-538.51,0.00021917,2]
[329632990,1718519442808,-500.0,0.00021917,2]
[329632991,1718519442838,-577.03,0.00021917,2]
[329632992,1718519442865,-500.0,0.00021917,2]
[329632993,1718519442888,-332.2205029,0.00021917,2]
[329632994,1718519442934,-534.91059683,0.00021917,2]
[329632995,1718519442949,-500.0,0.00021917,2]
[329632996,1718519442996,-500.0,0.00021917,2]
[329632997,1718519443015,-500.0,0.00021917,2]
[329632998,1718519443028,-500.0,0.00021917,2]
[329632999,1718519443056,-618.93,0.00021917,2]
[329633000,1718519443068,-500.0,0.00021917,2]
[329633001,1718519443095,-500.0,0.00021917,2]
[329633002,1718519443116,-500.0,0.00021917,2]
[329633003,1718519443131,-528.16064332,0.00021917,2]
[329633004,1718519443180,-500.0,0.00021917,2]
[329633005,1718519443202,-689.97,0.00021917,2]
[329633006,1718519443247,-500.0,0.00021917,2]
[329633007,1718519443260,-500.0,0.00021917,2]
[329633008,1718519443279,-500.0,0.00021917,2]
[329633009,1718519443308,-500.0,0.00021917,2]
[329633010,1718519443336,-500.0,0.00021917,2]
[329633011,1718519443352,-500.0,0.00021917,2]
[329633012,1718519443372,-500.0,0.00021917,2]
[329633013,1718519443385,-500.0,0.00021917,2]
[329633014,1718519443397,-732.2,0.00021917,2]
[329633015,1718519443422,-500.0,0.00021917,2]
[329633016,1718519443436,-500.0,0.00021917,2]
[329633017,1718519443475,-500.0,0.00021917,2]
[329633018,1718519443505,-500.0,0.00021917,2]
[329633019,1718519443530,-500.0,0.00021917,2]
[329633020,1718519443543,-481.55313589,0.00021917,2]
[329633021,1718519443565,-500.0,0.00021917,2]
[329633022,1718519443580,-500.0,0.00021917,2]
[329633023,1718519443596,-500.0,0.00021917,2]
[329633024,1718519443622,-500.0,0.00021917,2]
[329633025,1718519443634,-500.0,0.00021917,2]
[329633026,1718519443646,-500.0,0.00021917,2]
[329633027,1718519443663,-500.0,0.00021917,2]
[329633028,1718519443674,-529.46904564,0.00021917,2]
[329633029,1718519443697,-528.47,0.00021917,2]
[329633030,1718519443709,-500.0,0.00021917,2]
[329633031,1718519443722,-500.0,0.00021917,2]